fUST/lending_fUST_20250624
["ID","MTS","AMOUNT","RATE_DAILY","PERIOD"]
[367187369,1750696245637,-460.0,0.00021854,2]
[367187372,1750696245653,-851.13,0.00021854,2]
[367187375,1750696245664,-1735.62,0.00021854,2]
[367187376,1750696245674,-460.0,0.00021854,2]
[367187378,1750696245684,-460.0,0.00021854,2]
[367187381,1750696245695,-291.26230414,0.00021854,2]
[367187383,1750696245705,-1107.46,0.00021854,2]
[367187385,1750696245715,-460.0,0.00021854,2]
[367187387,1750696245726,-460.0,0.00021854,2]
[367187389,1750696245736,-725.62,0.00021854,2]
[367187391,1750696245747,-2256.88,0.00021854,2]
[367187393,1750696245757,-460.0,0.00021854,2]
[367187395,1750696245768,-460.0,0.00021854,2]
[367187397,1750696245779,-794.92,0.00021854,2]
[367187399,1750696245789,-744.64,0.00021854,2]
[367187401,1750696245799,-550.15,0.00021854,2]
[367187403,1750696245810,-460.0,0.00021854,2]
[367187405,1750696245823,-700.63,0.00021854,2]
[367187407,1750696245833,-460.0,0.00021854,2]
[367187409,1750696245843,-640.89,0.00021854,2]
[367187411,1750696245853,-709.61,0.00021854,2]
[367187413,1750696245865,-460.0,0.00021854,2]
[367187415,1750696245875,-1049.83,0.00021854,2]
[367187417,1750696245885,-541.73,0.00021854,2]
[367187419,1750696245900,-941.12,0.00021854,2]
[367187421,1750696245912,-460.0,0.00021854,2]
[367187423,1750696245922,-628.21,0.00021854,2]
[367187425,1750696245931,-460.0,0.00021854,2]
[367187427,1750696245942,-709.81,0.00021854,2]
[367187429,1750696245952,-890.16,0.00021854,2]
[367187431,1750696245962,-1705.35,0.00021854,2]
[367187433,1750696245972,-429.93813131,0.00021854,2]
[367187435,1750696245985,-615.66,0.00021854,2]
[367187438,1750696245996,-460.0,0.00021854,2]
[367187440,1750696246007,-460.0,0.00021854,2]
[367187442,1750696246017,-460.0,0.00021854,2]
[367187443,1750696246027,-985.66,0.00021854,2]
[367187445,1750696246037,-535.47,0.00021854,2]
[367187448,1750696246048,-460.0,0.00021855,2]
[367187450,1750696246058,-460.0,0.00021855,2]
[367187452,1750696246070,-460.0,0.00021855,2]
[367187454,1750696246082,-475.46,0.00021855,2]
[367187456,1750696246093,-287.46108804,0.00021855,2]
[367187458,1750696246104,-718.16,0.00021855,2]
[367187460,1750696246114,-994.62,0.00021855,2]
[367187462,1750696246125,-466.24,0.00021855,2]
[367187484,1750696246310,-3424.28,0.00021855,2]
[367187487,1750696246352,-1206.61,0.00021855,2]
[367187489,1750696246363,-460.0,0.00021855,2]
[367187491,1750696246373,-481.95,0.00021855,2]
[367187493,1750696246382,-901.2,0.00021855,2]
[367187495,1750696246394,-725.62,0.00021855,2]
[367187497,1750696246405,-623.27,0.00021855,2]
[367187499,1750696246416,-980.56,0.00021855,2]
[367187501,1750696246426,-507.46,0.00021855,2]
[367187503,1750696246436,-2399.69,0.00021855,2]
[367187505,1750696246446,-4828.85,0.00021855,2]
[367187506,1750696246456,-460.0,0.00021855,2]
[367187507,1750696246467,-2240.03,0.00021855,2]
[367187508,1750696246477,-614.04,0.00021855,2]
[367187509,1750696246486,-4194.49,0.00021855,2]
[367187510,1750696246496,-722.69,0.00021864,2]
[367187511,1750696246505,-2067.94,0.00021864,2]
[367187512,1750696246515,-1082.58,0.00021864,2]
[367187513,1750696246525,-1755.32,0.00021864,2]
[367187514,1750696246534,-2874.59,0.00021864,2]
[367187515,1750696246545,-460.0,0.00021864,2]
[367187517,1750696246555,-460.0,0.00021864,2]
[367187518,1750696246565,-1033.34,0.00021864,2]
[367187519,1750696246574,-694.12,0.00021864,2]
[367187520,1750696246584,-844.73,0.00021864,2]
[367187521,1750696246593,-460.0,0.00021864,2]
[367187522,1750696246603,-1081.74,0.00021864,2]
[367187523,1750696246612,-460.0,0.00021864,2]
[367187524,1750696246622,-720.23,0.00021864,2]
[367187525,1750696246631,-460.0,0.00021864,2]
[367187526,1750696246641,-460.0,0.00021864,2]
[367187527,1750696246655,-729.87,0.00021864,2]
[367187528,1750696246665,-460.0,0.00021864,2]
[367187529,1750696246675,-1438.1,0.00021864,2]
[367187530,1750696246685,-460.0,0.00021864,2]
[367187531,1750696246695,-473.46,0.00021864,2]
[367187532,1750696246705,-460.0,0.00021864,2]
[367187533,1750696246715,-487.71,0.00021864,2]
[367187534,1750696246724,-460.0,0.00021864,2]
[367187535,1750696246734,-460.0,0.00021864,2]
[367187536,1750696246743,-460.0,0.00021864,2]
[367187537,1750696246753,-460.0,0.00021864,2]
[367187538,1750696246763,-947.65,0.00021864,2]
[367187539,1750696246772,-974.94,0.00021864,2]
[367187540,1750696246781,-775.13,0.00021864,2]
[367187542,1750696246790,-460.0,0.00021864,2]
[367187543,1750696246800,-3463.77,0.00021864,2]
[367187544,1750696246810,-604.81,0.00021864,2]
[367187546,1750696246821,-781.54,0.00021864,2]
[367187548,1750696246830,-731.86,0.00021864,2]
[367187550,1750696246841,-559.85,0.00021864,2]
[367187552,1750696246850,-581.17,0.00021864,2]
[367187554,1750696246862,-460.0,0.00021864,2]
[367187556,1750696246871,-795.12,0.00021864,2]
[367187558,1750696246881,-902.93,0.00021864,2]
[367187560,1750696246891,-695.16,0.00021864,2]
[367187562,1750696246903,-460.0,0.00021864,2]
[367187564,1750696246912,-460.0,0.00021864,2]
[367187566,1750696246921,-910.73,0.00021864,2]
[367187568,1750696246930,-827.62,0.00021864,2]
[367187570,1750696246940,-725.62,0.00021865,2]
[367187572,1750696246950,-725.62,0.00021865,2]
[367187574,1750696246959,-337.50114976,0.00021866,2]
[367187576,1750696246969,-460.0,0.00021866,2]
[367187578,1750696246978,-460.0,0.00021866,2]
[367187580,1750696246988,-460.0,0.00021866,2]
[367187582,1750696246997,-460.0,0.00021866,2]
[367187584,1750696247007,-479.83,0.00021866,2]
[367187586,1750696247017,-526.27379528,0.00021866,2]
[367187588,1750696247027,-460.0,0.00021866,2]
[367187590,1750696247036,-460.0,0.00021866,2]
[367187592,1750696247046,-460.0,0.00021866,2]
[367187594,1750696247055,-725.62,0.00021866,2]
[367187596,1750696247064,-725.62,0.00021866,2]
[367187598,1750696247074,-460.0,0.00021867,2]
[367187600,1750696247084,-460.0,0.00021867,2]
[367187602,1750696247093,-460.0,0.00021867,2]
[367187604,1750696247102,-156.02636217,0.00021867,2]
[367187606,1750696247112,-572.99343343,0.00021867,2]
[367187608,1750696247122,-460.0,0.00021867,2]
[367187610,1750696247132,-177.58599281,0.00021867,2]
[367187612,1750696247142,-460.0,0.00021867,2]
[367187614,1750696247154,-460.0,0.00021867,2]
[367187616,1750696247164,-460.0,0.00021867,2]
[367187618,1750696247174,-460.0,0.00021867,2]
[367187620,1750696247183,-460.0,0.00021867,2]
[367187622,1750696247193,-460.0,0.00021867,2]
[367187624,1750696247202,-460.0,0.00021867,2]
[367187626,1750696247211,-726.6,0.00021867,2]
[367187628,1750696247220,-460.0,0.00021867,2]
[367187630,1750696247229,-811.0,0.00021867,2]
[367187632,1750696247239,-598.3,0.00021867,2]
[367187634,1750696247249,-460.0,0.00021867,2]
[367187636,1750696247258,-460.0,0.00021867,2]
[367187638,1750696247267,-460.0,0.00021867,2]
[367187640,1750696247277,-460.0,0.00021867,2]
[367187642,1750696247286,-460.0,0.00021867,2]
[367187644,1750696247295,-460.0,0.00021867,2]
[367187646,1750696247304,-460.0,0.00021867,2]
[367187648,1750696247313,-460.0,0.00021867,2]
[367187649,1750696247323,-460.0,0.00021867,2]
[367187651,1750696247332,-460.0,0.00021867,2]
[367187653,1750696247342,-460.0,0.00021867,2]
[367187655,1750696247352,-526.13,0.00021867,2]
[367187658,1750696247362,-460.0,0.00021867,2]
[367187660,1750696247372,-583.67,0.00021867,2]
[367187662,1750696247381,-460.0,0.00021867,2]
[367187664,1750696247390,-500.0,0.00021867,2]
[367187666,1750696247403,-674.41,0.00021867,2]
[367187668,1750696247413,-460.0,0.00021867,2]
[367187670,1750696247422,-460.0,0.00021867,2]
[367187672,1750696247431,-460.0,0.00021867,2]
[367187674,1750696247441,-460.0,0.00021867,2]
[367187676,1750696247450,-460.0,0.00021867,2]
[367187678,1750696247459,-460.0,0.00021867,2]
[367187680,1750696247470,-792.37,0.00021867,2]
[367187682,1750696247479,-759.81,0.00021867,2]
[367187684,1750696247489,-701.79,0.00021867,2]
[367187686,1750696247499,-887.36,0.00021867,2]
[367187688,1750696247508,-680.92,0.00021867,2]
[367187690,1750696247517,-460.0,0.00021867,2]
[367187692,1750696247526,-486.89,0.00021867,2]
[367187694,1750696247536,-796.14,0.00021867,2]
[367187696,1750696247545,-653.54,0.00021867,2]
[367187698,1750696247555,-460.0,0.00021867,2]
[367187700,1750696247564,-591.09,0.00021867,2]
[367187702,1750696247574,-482.25,0.00021867,2]
[367187704,1750696247583,-884.56,0.00021867,2]
[367187706,1750696247593,-460.0,0.00021867,2]
[367187708,1750696247602,-460.0,0.00021867,2]
[367187710,1750696247611,-460.0,0.00021867,2]
[367187712,1750696247621,-460.0,0.00021867,2]
[367187714,1750696247631,-460.0,0.00021867,2]
[367187716,1750696247640,-551.46,0.00021867,2]
[367187718,1750696247653,-681.23,0.00021867,2]
[367187720,1750696247663,-460.0,0.00021867,2]
[367187722,1750696247674,-460.0,0.00021867,2]
[367187724,1750696247683,-1974.98,0.00021867,2]
[367187726,1750696247692,-460.0,0.00021867,2]
[367187728,1750696247702,-460.0,0.00021867,2]
[367187730,1750696247711,-460.0,0.00021867,2]
[367187732,1750696247721,-633.77,0.00021867,2]
[367187734,1750696247730,-551.96,0.00021867,2]
[367187736,1750696247740,-460.0,0.00021867,2]
[367187738,1750696247749,-460.0,0.00021867,2]
[367187740,1750696247758,-628.64,0.00021867,2]
[367187742,1750696247767,-460.0,0.00021867,2]
[367187743,1750696247778,-1430.36,0.00021867,2]
[367187746,1750696247795,-651.68,0.00021867,2]
[367187748,1750696247804,-460.0,0.00021867,2]
[367187749,1750696247814,-460.0,0.00021867,2]
[367187752,1750696247828,-460.0,0.00021867,2]
[367187753,1750696247837,-460.0,0.00021867,2]
[367187756,1750696247847,-645.68,0.00021867,2]
[367187758,1750696247857,-460.0,0.00021867,2]
[367187759,1750696247866,-460.0,0.00021867,2]
[367187761,1750696247876,-460.0,0.00021867,2]
[367187763,1750696247886,-460.0,0.00021867,2]
[367187765,1750696247897,-763.41,0.00021867,2]
[367187767,1750696247907,-703.42,0.00021867,2]
[367187770,1750696247918,-460.0,0.00021867,2]
[367187771,1750696247927,-460.0,0.00021867,2]
[367187773,1750696247936,-460.0,0.00021867,2]
[367187775,1750696247945,-933.02,0.00021867,2]
[367187777,1750696247954,-460.0,0.00021867,2]
[367187779,1750696247964,-238.50825546,0.00021867,2]
[367187781,1750696247973,-856.14,0.00021867,2]
[367187783,1750696247982,-460.0,0.00021867,2]
[367187785,1750696247991,-460.0,0.00021867,2]
[367187787,1750696248001,-627.83,0.00021867,2]
[367187789,1750696248010,-473.26,0.00021867,2]
[367187791,1750696248020,-661.6,0.00021867,2]
[367187793,1750696248029,-460.0,0.00021867,2]
[367187795,1750696248039,-969.95,0.00021867,2]
[367187797,1750696248049,-1000.0,0.00021868,2]
[367187799,1750696248058,-1000.0,0.00021868,2]
[367187801,1750696248069,-725.62,0.00021868,2]
[367187803,1750696248078,-561.08,0.00021869,2]
[367187805,1750696248089,-460.0,0.00021869,2]
[367187807,1750696248098,-637.32,0.00021869,2]
[367187809,1750696248108,-223.77273256,0.00021869,2]
[367187811,1750696248118,-460.0,0.00021869,2]
[367187813,1750696248128,-460.0,0.00021869,2]
[367187815,1750696248138,-460.0,0.00021869,2]
[367187817,1750696248149,-460.0,0.00021869,2]
[367187819,1750696248158,-460.0,0.00021869,2]
[367187821,1750696248169,-500.0,0.00021873,2]
[367187823,1750696248179,-500.0,0.00021873,2]
[367187825,1750696248188,-503.20172477,0.00021873,2]
[367187827,1750696248198,-500.0,0.00021873,2]
[367187829,1750696248208,-345.73986102,0.00021873,2]
[367187831,1750696248217,-198.40910396,0.00021873,2]
[367187833,1750696248227,-500.0,0.00021873,2]
[367187835,1750696248237,-403.83542465,0.00021873,2]
[367187837,1750696248248,-500.0,0.00021873,2]
[367187839,1750696248258,-500.0,0.00021873,2]
[367187841,1750696248268,-500.0,0.00021873,2]
[367187843,1750696248278,-500.0,0.00021873,2]
[367187845,1750696248288,-500.0,0.00021873,2]
[367187847,1750696248298,-500.0,0.00021873,2]
[367187849,1750696248308,-508.31677155,0.00021873,2]
[367187851,1750696248318,-233.12,0.000219,2]
[367187853,1750696248328,-500.0,0.00021917,2]
[367187855,1750696248338,-500.0,0.00021917,2]
[367187857,1750696248347,-500.0,0.00021917,2]
[367187859,1750696248357,-781.23,0.00021917,2]
[367187861,1750696248367,-616.21,0.00021917,2]
[367187862,1750696248376,-3865.65,0.00021917,2]
[367187864,1750696248386,-1039.7,0.00021917,2]
[367187866,1750696248399,-791.44,0.00021917,2]
[367187868,1750696248410,-460.0,0.00021917,2]
[367187870,1750696248419,-955.39,0.00021917,2]
[367187872,1750696248430,-460.0,0.00021917,2]
[367187874,1750696248440,-460.0,0.00021917,2]
[367187876,1750696248450,-501.72,0.00021917,2]
[367187878,1750696248460,-1607.53,0.00021917,2]
[367187880,1750696248470,-670.08,0.00021917,2]
[367187882,1750696248480,-3568.04,0.00021917,2]
[367187884,1750696248490,-723.41,0.00021917,2]
[367187886,1750696248500,-3650.83,0.00021917,2]
[367187888,1750696248510,-500.0,0.00021917,2]
[367187890,1750696248519,-685.4,0.00021917,2]
[367187892,1750696248528,-615.98,0.00021917,2]
[367187894,1750696248539,-2351.82,0.00021917,2]
[367187896,1750696248549,-412.50022847,0.00021917,2]
[367187898,1750696248558,-1997.07,0.00021917,2]
[367187900,1750696248567,-666.77,0.00021917,2]
[367187902,1750696248578,-1021.95,0.00021917,2]
[367187904,1750696248587,-460.0,0.00021917,2]
[367187906,1750696248597,-209.25266954,0.00021918,2]
[367187908,1750696248608,-206.61473792,0.00021918,2]
[367187910,1750696248617,-1000.0,0.00021932,2]
[367187912,1750696248627,-460.0,0.00021933,2]
[367187914,1750696248636,-530.13547856,0.00021973,2]
[367187916,1750696248647,-500.0,0.00021973,2]
[367187918,1750696248657,-501.95932904,0.00021973,2]
[367187920,1750696248666,-500.0,0.00021973,2]
[367187922,1750696248677,-222.81406767,0.00021973,2]
[367187928,1750696248732,-500.0,0.00021973,2]
[367187930,1750696248743,-500.0,0.00021973,2]
[367187932,1750696248752,-500.46361325,0.00021973,2]
[367187934,1750696248762,-500.0,0.00021973,2]
[367187936,1750696248771,-500.0,0.00021973,2]
[367187938,1750696248780,-500.0,0.00021973,2]
[367187940,1750696248790,-500.0,0.00021973,2]
[367187942,1750696248800,-500.0,0.00021973,2]
[367187944,1750696248809,-500.0,0.00021973,2]
[367187946,1750696248821,-500.0,0.00021973,2]
[367187948,1750696248830,-500.0,0.00021973,2]
[367187950,1750696248839,-600.0,0.00021973,2]
[367187952,1750696248849,-500.0,0.00021973,2]
[367187954,1750696248860,-500.0,0.00021973,2]
[367187956,1750696248870,-500.0,0.00021973,2]
[367187958,1750696248879,-500.0,0.00021973,2]
[367187960,1750696248891,-500.0,0.00021973,2]
[367187962,1750696248905,-500.0,0.00021973,2]
[367187964,1750696248914,-500.0,0.00021973,2]
[367187966,1750696248923,-500.0,0.00021973,2]
[367187968,1750696248933,-500.0,0.00021973,2]
[367187970,1750696248942,-500.0,0.00021973,2]
[367187972,1750696248952,-197.68801559,0.00021973,2]
[367187974,1750696248962,-500.0,0.00021973,2]
[367187977,1750696248972,-500.0,0.00021973,2]
[367187979,1750696248983,-500.0,0.00021973,2]
[367187980,1750696248993,-632.54747882,0.00021973,2]
[367187983,1750696249018,-500.0,0.00021973,2]
[367187986,1750696249031,-500.0,0.00021973,2]
[367187988,1750696249042,-378.71298463,0.00021973,2]
[367187990,1750696249052,-500.0,0.00021973,2]
[367187992,1750696249061,-500.0,0.00021973,2]
[367187994,1750696249071,-500.0,0.00021973,2]
[367187996,1750696249081,-725.62,0.00021979,2]
[367187997,1750696249090,-1000.0,0.00021981,2]
[367187999,1750696249100,-1000.0,0.00021981,2]
[367188002,1750696249110,-526.3,0.00021981,2]
[367188004,1750696249120,-4021.96336308,0.0002199,2]
[367188037,1750696249527,-460.0,0.0002158,2]
[367188039,1750696249538,-193.64,0.00021854,2]
[367188041,1750696249548,-89324.61629877,0.0002199,2]
[367188043,1750696249558,-10321.74370123,0.00022,2]
[367188045,1750696249569,-11915.85416178,0.00022,2]
[367188048,1750696249580,-539.55592529,0.00022,2]
[367188071,1750696249798,-380.14904973,0.00020547,2]
[367188073,1750696249809,-460.0,0.0002159,2]
[367188075,1750696249821,-460.0,0.00021864,2]
[367188077,1750696249831,-7596.70237663,0.00022,2]
[367188079,1750696249840,-139561.73343266,0.00022,2]
[367188082,1750696249855,-24044.84541533,0.00022,2]
[367188084,1750696249865,-386.63703508,0.00022,2]
[367188086,1750696249874,-161.29545787,0.00022,2]
[367188088,1750696249883,-460.0,0.00022027,2]
[367188090,1750696249892,-460.0,0.00022027,2]
[367188092,1750696249904,-680.16,0.00022027,2]
[367188094,1750696249913,-460.0,0.00022027,2]
[367188096,1750696249922,-460.0,0.00022027,2]
[367188098,1750696249931,-460.0,0.00022027,2]
[367188100,1750696249941,-460.0,0.00022027,2]
[367188102,1750696249951,-460.0,0.00022027,2]
[367188104,1750696249960,-1918.13674853,0.00022027,2]
[367188106,1750696249971,-1748.09325147,0.00022027,2]
[367188108,1750696249980,-460.0,0.00022027,2]
[367188110,1750696249990,-460.0,0.00022027,2]
[367188112,1750696249999,-638.56,0.00022027,2]
[367188114,1750696250009,-460.0,0.00022027,2]
[367188116,1750696250018,-714.86,0.00022027,2]
[367188118,1750696250027,-1139.1,0.00022027,2]
[367188120,1750696250036,-4525.33,0.00022027,2]
[367188122,1750696250045,-218.78814851,0.00022028,2]
[367188124,1750696250054,-322.50935835,0.00022028,2]
[367188126,1750696250063,-460.0,0.00022028,2]
[367188128,1750696250072,-460.0,0.00022028,2]
[367188130,1750696250081,-460.0,0.00022028,2]
[367188132,1750696250090,-460.0,0.00022028,2]
[367188134,1750696250100,-460.0,0.00022028,2]
[367188136,1750696250109,-460.0,0.00022028,2]
[367188138,1750696250118,-460.0,0.00022028,2]
[367188140,1750696250127,-460.0,0.00022028,2]
[367188142,1750696250137,-468.69,0.00022028,2]
[367188144,1750696250146,-1494.23,0.00022028,2]
[367188146,1750696250156,-460.0,0.00022028,2]
[367188148,1750696250165,-729.95,0.00022028,2]
[367188150,1750696250174,-460.0,0.00022028,2]
[367188152,1750696250184,-460.0,0.00022028,2]
[367188154,1750696250193,-460.0,0.00022028,2]
[367188156,1750696250203,-460.0,0.00022028,2]
[367188158,1750696250213,-460.0,0.00022028,2]
[367188160,1750696250223,-460.0,0.00022028,2]
[367188162,1750696250232,-744.4,0.00022028,2]
[367188164,1750696250241,-460.0,0.00022028,2]
[367188166,1750696250251,-460.0,0.00022028,2]
[367188168,1750696250260,-460.0,0.00022028,2]
[367188170,1750696250269,-460.0,0.00022028,2]
[367188172,1750696250278,-612.37,0.00022028,2]
[367188174,1750696250287,-460.0,0.00022028,2]
[367188176,1750696250297,-460.0,0.00022028,2]
[367188178,1750696250306,-460.0,0.00022028,2]
[367188180,1750696250316,-460.0,0.00022028,2]
[367188183,1750696250326,-460.0,0.00022028,2]
[367188184,1750696250336,-460.0,0.00022028,2]
[367188186,1750696250345,-460.0,0.00022028,2]
[367188188,1750696250354,-460.0,0.00022028,2]
[367188190,1750696250363,-528.39,0.00022028,2]
[367188192,1750696250372,-460.0,0.00022028,2]
[367188194,1750696250381,-460.0,0.00022028,2]
[367188196,1750696250390,-460.0,0.00022028,2]
[367188198,1750696250401,-520.01,0.00022028,2]
[367188200,1750696250411,-531.56,0.00022028,2]
[367188202,1750696250420,-460.0,0.00022028,2]
[367188204,1750696250430,-460.0,0.00022028,2]
[367188206,1750696250439,-460.0,0.00022028,2]
[367188209,1750696250449,-646.89,0.00022028,2]
[367188211,1750696250459,-460.0,0.00022028,2]
[367188213,1750696250468,-1223.27,0.00022028,2]
[367188214,1750696250479,-1790.3,0.00022028,2]
[367188216,1750696250489,-460.0,0.00022028,2]
[367188218,1750696250498,-1066.19954375,0.00022028,2]
[367188220,1750696250511,-258.64045625,0.00022028,2]
[367188222,1750696250520,-460.0,0.00022028,2]
[367188224,1750696250530,-460.0,0.00022028,2]
[367188226,1750696250541,-671.38,0.00022028,2]
[367188229,1750696250551,-5495.67530008,0.00022028,2]
[367188231,1750696250564,-3035.840795,0.00022028,2]
[367188270,1750696251156,-774.81016698,0.00021579,2]
[367188272,1750696251167,-774.81016698,0.00021579,2]
[367188274,1750696251177,-774.81016698,0.00021579,2]
[367188276,1750696251186,-774.81016698,0.00021579,2]
[367188278,1750696251196,-774.81016698,0.00021579,2]
[367188280,1750696251206,-774.81016698,0.00021579,2]
[367188282,1750696251216,-774.81016698,0.00021579,2]
[367188284,1750696251226,-774.81016698,0.00021579,2]
[367188286,1750696251236,-774.81016698,0.00021579,2]
[367188288,1750696251246,-774.81016698,0.00021579,2]
[367188291,1750696251256,-460.0,0.0002158,2]
[367188293,1750696251266,-460.0,0.0002158,2]
[367188295,1750696251277,-1282.22390492,0.00022028,2]
[367188297,1750696251287,-460.0,0.00022028,2]
[367188299,1750696251296,-1563.24,0.00022028,2]
[367188301,1750696251306,-167.45607275,0.00022041,2]
[367188303,1750696251316,-1000.0,0.00022121,2]
[367188305,1750696251326,-420.83765646,0.00022121,2]
[367188307,1750696251335,-703.1307375,0.00022121,2]
[367188309,1750696251345,-1000.0,0.00022121,2]
[367188311,1750696251354,-500.0,0.00022121,2]
[367188313,1750696251364,-535.73790015,0.00022121,2]
[367188315,1750696251374,-500.0,0.00022121,2]
[367188317,1750696251383,-481.68474319,0.00022121,2]
[367188319,1750696251392,-425.31093451,0.00022121,2]
[367188322,1750696251413,-460.0,0.0002148,2]
[367188324,1750696251423,-574.68906549,0.00022121,2]
[367188326,1750696251433,-460.0,0.00022128,2]
[367188328,1750696251443,-789.83,0.00022128,2]
[367188330,1750696251453,-306.85112534,0.00022128,2]
[367188332,1750696251463,-460.0,0.00022128,2]
[367188334,1750696251472,-460.0,0.00022128,2]
[367188336,1750696251482,-460.0,0.00022128,2]
[367188338,1750696251493,-460.0,0.00022128,2]
[367188340,1750696251502,-746.89,0.00022128,2]
[367188342,1750696251512,-460.0,0.00022128,2]
[367188344,1750696251522,-741.17,0.00022128,2]
[367188346,1750696251531,-1234.74,0.00022128,2]
[367188349,1750696251541,-526.68,0.00022128,2]
[367188351,1750696251552,-460.0,0.00022128,2]
[367188353,1750696251562,-460.0,0.00022128,2]
[367188355,1750696251572,-510.97,0.00022128,2]
[367188357,1750696251581,-460.0,0.00022128,2]
[367188359,1750696251591,-460.0,0.00022128,2]
[367188361,1750696251603,-761.56,0.00022128,2]
[367188363,1750696251613,-946.56,0.00022128,2]
[367188365,1750696251622,-460.0,0.00022128,2]
[367188367,1750696251632,-460.0,0.00022128,2]
[367188369,1750696251642,-482.88,0.00022128,2]
[367188371,1750696251656,-460.0,0.00022128,2]
[367188373,1750696251666,-700.65,0.00022128,2]
[367188375,1750696251676,-460.0,0.00022128,2]
[367188377,1750696251686,-627.46,0.00022128,2]
[367188379,1750696251695,-631.0,0.00022128,2]
[367188381,1750696251705,-460.0,0.00022128,2]
[367188384,1750696251715,-1929.44,0.00022128,2]
[367188386,1750696251724,-1071.18,0.00022128,2]
[367188388,1750696251734,-587.47,0.00022128,2]
[367188390,1750696251743,-460.0,0.00022128,2]
[367188392,1750696251753,-460.0,0.00022128,2]
[367188394,1750696251762,-460.0,0.00022128,2]
[367188396,1750696251772,-912.84,0.00022128,2]
[367188398,1750696251782,-832.18,0.00022128,2]
[367188400,1750696251791,-460.0,0.00022128,2]
[367188402,1750696251801,-460.0,0.00022128,2]
[367188404,1750696251811,-460.0,0.00022128,2]
[367188406,1750696251825,-552.33,0.00022128,2]
[367188408,1750696251835,-460.0,0.00022128,2]
[367188410,1750696251845,-851.13,0.00022128,2]
[367188412,1750696251854,-1735.62,0.00022128,2]
[367188414,1750696251865,-460.0,0.00022128,2]
[367188416,1750696251875,-460.0,0.00022128,2]
[367188418,1750696251884,-1107.46,0.00022128,2]
[367188420,1750696251895,-460.0,0.00022128,2]
[367188422,1750696251908,-460.0,0.00022128,2]
[367188425,1750696251918,-2256.88,0.00022128,2]
[367188427,1750696251929,-725.62,0.00022128,2]
[367188429,1750696251939,-725.62,0.00022128,2]
[367188431,1750696251948,-725.62,0.00022128,2]
[367188433,1750696251958,-725.62,0.00022128,2]
[367188435,1750696251967,-460.0,0.00022128,2]
[367188437,1750696251977,-725.85,0.00022128,2]
[367188439,1750696251987,-460.0,0.00022128,2]
[367188441,1750696251997,-794.92,0.00022128,2]
[367188443,1750696252007,-744.64,0.00022128,2]
[367188445,1750696252017,-550.15,0.00022128,2]
[367188447,1750696252027,-460.0,0.00022128,2]
[367188449,1750696252036,-700.63,0.00022128,2]
[367188451,1750696252046,-460.0,0.00022128,2]
[367188453,1750696252056,-640.89,0.00022128,2]
[367188455,1750696252066,-709.61,0.00022128,2]
[367188457,1750696252075,-460.0,0.00022128,2]